bitfinex-derivatives/quotes_ETHF0:USTF0_20250531
["timestamp","ask_amount","ask_price","bid_price","bid_amount"]
[1748686463677,3.9988,2527.6,2527.5,0.791]
[1748686463880,1.2678,2527.8,2527.7,0.79094]
[1748686464079,3.28528611,2527.9,2527.7,0.79093]
[1748686464281,0.79093,2527.8,2527.7,0.79093]
[1748686464980,3.28528611,2527.9,2527.8,0.79091]
[1748686465480,0.07748611,2527.9,2527.8,0.79091]
[1748686467484,0.86836611,2527.9,2527.8,0.79091]
[1748686467682,0.07748611,2527.9,2527.8,0.79091]
[1748686468380,0.08363273,2527.9,2527.8,0.79091]
[1748686468787,0.87451273,2527.9,2527.8,0.79091]
[1748686469584,0.08363273,2527.9,2527.8,0.79091]
[1748686471376,0.08363273,2527.9,2527.8,5.79091]
[1748686471583,2.35910949,2529.0,2528.9,0.79056]
[1748686472183,0.79056,2528.9,2528.8,0.79058]
[1748686472389,4.5611,2528.9,2528.8,0.79059]
[1748686472592,3.2078,2528.9,2528.8,0.79059]
[1748686473287,0.00593272,2529.1,2529.0,0.79053]
[1748686473595,2.35910949,2529.8,2529.7,0.79031]
[1748686473889,2.35910949,2529.8,2529.7,3.99811]
[1748686474291,1.9818,2530.4,2529.7,3.99811]
[1748686474485,0.79024,2530.0,2529.5,1.97591]
[1748686474681,0.79023,2530.0,2529.5,1.97591]
[1748686474885,3.2078,2530.0,2529.5,0.79035]
[1748686475085,0.79029,2529.8,2529.7,0.79029]
[1748686475290,1.3199,2529.9,2529.7,0.79029]
[1748686475487,1.3199,2529.9,2529.8,0.79028]
[1748686475992,0.79019,2530.1,2529.5,1.97591]
[1748686476187,1.3199,2530.2,2530.1,0.79019]
[1748686476392,0.00593272,2530.3,2530.2,0.79016]
[1748686476593,3.2078,2530.9,2530.8,0.78997]
[1748686476887,7.16705335,2532.7,2530.8,0.78997]
[1748686476888,6.80535376,2532.5,2532.1,3.2078]
[1748686477085,3.30141376,2532.5,2532.4,3.99727]
[1748686477281,3.2078,2535.0,2534.3,0.78888]
[1748686477683,1.2564209,2534.6,2534.2,3.2078]
[1748686477892,1.2505,2534.3,2533.3,3.2078]
[1748686478091,3.2078,2533.9,2532.9,3.2078]
[1748686478294,1.2505,2533.8,2533.2,3.2078]
[1748686478491,0.07893594,2533.7,2533.2,3.2078]
[1748686478693,3.2078,2534.0,2533.3,5.1534757]
[1748686478885,0.0059209,2534.6,2533.7,0.78907]
[1748686478886,1.2505,2533.8,2533.7,0.78907]
[1748686479087,3.28672971,2533.9,2533.4,0.0059209]
[1748686479088,9.71e-06,2533.9,2533.8,0.78903]
[1748686479390,9e-07,2534.6,2534.5,0.78882]
[1748686479591,0.07890881,2534.6,2534.5,0.78882]
[1748686479891,8.81e-06,2534.6,2534.5,3.99662]
[1748686480090,8.81e-06,2534.6,2534.5,0.78882]
[1748686480287,8.81e-06,2534.6,2534.5,3.99662]
[1748686480288,7.91e-06,2534.6,2534.5,3.99662]
[1748686480487,0.67,2536.1,2535.7,0.78844]
[1748686480488,3.2078,2535.8,2535.7,0.78844]
[1748686480690,3.2078,2535.8,2533.9,1.9725]
[1748686480691,3.28667057,2535.8,2535.1,3.2078]
[1748686480889,2.46934515,2535.8,2535.7,0.78844]
[1748686481193,2.25556,2536.7,2536.6,0.78816]
[1748686481397,0.1553944,2537.4,2537.3,0.78795]
[1748686481598,4.4e-06,2537.4,2537.3,3.99575]
[1748686481994,3.2078,2538.5,2537.5,1.96971]
[1748686482190,1.2934,2538.4,2538.3,0.78764]
[1748686482390,1.2934,2538.4,2538.2,3.2078]
[1748686482595,3.869,2538.3,2537.3,3.2078]
[1748686482795,3.2078,2537.9,2537.2,0.78797]
[1748686482992,3.2078,2537.7,2537.3,0.78794]
[1748686483190,1.263,2537.6,2537.1,0.0059209]
[1748686483396,3.2078,2537.4,2536.3,3.2078]
[1748686483687,1.81955,2536.9,2536.8,0.7881]
[1748686483898,3.2078,2537.8,2536.8,3.2078]
[1748686484091,1.263,2537.7,2537.6,0.78785]
[1748686484595,5.87875015,2537.7,2537.4,3.2137209]
[1748686484797,5.87875015,2537.7,2537.6,0.78785]
[1748686484994,5.87875015,2537.7,2537.4,3.2137209]
[1748686485998,1.263,2537.7,2537.6,0.78785]
[1748686486499,0.0059209,2537.9,2537.8,0.78779]
[1748686486693,0.0059209,2537.9,2537.8,3.99559]
[1748686487298,0.0059209,2537.9,2537.8,8.99559]
[1748686488008,4.62167105,2537.9,2537.8,3.2078]
[1748686488195,0.0059209,2537.9,2537.5,3.2078]
[1748686488403,1.2554,2537.8,2537.6,3.2078]
[1748686488905,4.61575015,2537.8,2537.6,3.2078]
[1748686489404,5.89495015,2537.8,2537.6,3.2078]
[1748686489605,5.89495015,2537.8,2537.4,0.0059209]
[1748686489806,6.68277015,2537.8,2537.7,3.2078]
[1748686490004,6.68277015,2537.8,2535.8,1.97098]
[1748686490005,6.2792,2537.8,2536.7,3.2078]
[1748686490199,0.07155339,2537.7,2537.3,3.2078]
[1748686490505,0.85939339,2537.7,2537.4,0.07882084]
[1748686490715,1.2792,2537.6,2537.4,0.07882084]
[1748686490897,0.78788,2537.5,2537.4,0.07882084]
[1748686491298,1.40202925,2537.5,2537.4,0.07882084]
[1748686491499,1.40202925,2537.5,2537.0,1.89051249]
[1748686491500,0.78801,2537.1,2537.0,1.89051249]
[1748686491702,3.2078,2537.1,2536.1,3.2078]
[1748686491906,3.99606,2536.3,2536.2,0.07885813]
[1748686492411,8.2078,2536.3,2534.9,1.3416]
[1748686492701,0.0059209,2535.9,2535.5,3.2078]
[1748686492908,0.0059209,2535.9,2535.4,0.78853]
[1748686493104,1.3207209,2535.9,2535.3,0.0059209]
[1748686493301,3.2078,2535.7,2535.3,0.0059209]
[1748686493508,1.3148,2535.6,2535.3,0.7944709]
[1748686493703,1.3148,2535.6,2535.4,0.78852]
[1748686493905,0.0059209,2535.9,2535.3,0.0059209]
[1748686494110,0.78854,2535.4,2535.3,0.0059209]
[1748686494612,5.78854,2535.4,2535.3,0.0059209]
[1748686494802,0.7887,2534.9,2534.7,3.2078]
[1748686495001,1.3148,2534.8,2534.7,3.2078]
[1748686495203,1.3148,2534.8,2534.3,3.2078]
[1748686495911,0.78885,2534.4,2534.3,0.0059209]
[1748686496304,2.08565,2534.4,2534.3,0.0059209]
[1748686496703,8.26899,2534.4,2533.3,1.2292]
[1748686496908,3.99686,2533.8,2533.4,0.78916]
[1748686497108,3.2078,2534.3,2533.3,1.2292]
[1748686497412,0.78909,2533.7,2533.4,0.78915]
[1748686497605,3.2078,2533.9,2533.3,1.2292]
[1748686497810,0.78916,2533.4,2533.3,0.0059209]
[1748686498508,2.12646,2533.4,2533.3,0.0059209]
[1748686498906,0.78937,2532.8,2532.5,3.2078]
[1748686499110,3.2078,2533.2,2532.7,0.78935]
[1748686499306,1.3373,2533.1,2532.6,0.78939]
[1748686499605,0.78936,2532.8,2532.5,3.2078]
[1748686499807,1.3373,2533.1,2532.8,0.78933]
[1748686500008,2.12656,2533.1,2532.8,0.78935]
[1748686500310,1.3373,2533.1,2532.7,0.00394724]
[1748686500512,0.78935,2532.8,2532.7,0.00394724]
[1748686500905,2.12665,2532.8,2532.7,0.00394724]
[1748686501511,0.0059209,2533.2,2533.1,0.78925]
[1748686502003,1.2854,2533.6,2533.5,0.78913]
[1748686502204,0.7892,2533.3,2532.6,5.18128]
[1748686502407,0.78927,2533.1,2532.6,3.2078]
[1748686502711,1.2854,2533.0,2532.9,0.78932]
[1748686503009,0.6217,2534.1,2532.9,3.2078]
[1748686503010,3.2078,2533.6,2532.9,3.2078]
[1748686503214,0.0059209,2533.5,2532.9,3.2078]
[1748686503607,0.6217,2534.1,2533.9,0.78898]
[1748686503914,5.1149,2534.1,2533.2,3.2078]
[1748686504301,1.2854,2534.1,2534.0,0.78897]
[1748686504708,3.2137209,2534.3,2534.2,0.78891]
[1748686505010,1.2604,2534.2,2534.1,0.78894]
[1748686505212,0.0059209,2534.3,2534.2,0.78891]
[1748686505804,1.2604,2534.6,2534.5,0.78882]
[1748686506013,3.2078,2535.3,2534.5,0.78882]
[1748686506205,3.2078,2535.0,2534.9,0.78867]
[1748686506611,3.2078,2535.0,2534.6,1.97197]
[1748686506808,1.2604,2535.2,2535.1,0.78863]
[1748686507112,0.78868,2535.0,2534.8,0.78872]
[1748686507317,1.2604,2534.9,2534.8,0.78872]
[1748686507812,1.2604,2534.9,2534.7,0.78873]
[1748686508014,1.2604,2534.9,2534.8,0.78872]
[1748686508713,3.8853209,2535.4,2534.6,3.2078]
[1748686508914,0.78862,2535.2,2534.6,3.2078]
[1748686509116,1.251,2535.1,2534.6,3.2078]
[1748686509415,1.251,2535.1,2535.0,0.78866]
[1748686509616,0.0059209,2535.4,2535.3,0.78857]
[1748686510012,0.0059209,2535.4,2535.3,8.99637]
[1748686510419,1e-05,2536.2,2536.1,0.78832]
[1748686510610,1e-05,2536.2,2536.1,3.99612]
[1748686510913,1e-05,2536.2,2536.1,8.99612]
[1748686511114,1e-05,2536.2,2536.1,3.99612]
[1748686511415,1e-05,2536.2,2536.1,8.99612]
[1748686511916,9e-07,2536.4,2536.3,0.78826]
[1748686512411,9e-07,2536.4,2536.3,5.78826]
[1748686512809,9e-07,2536.4,2536.3,6.92781764]
[1748686513011,0.78774,2538.0,2537.7,0.78781]
[1748686513215,1.2351,2537.9,2537.7,3.2078]
[1748686513418,1.2351,2537.9,2536.3,2.38075764]
[1748686513419,3.2078,2537.8,2536.4,3.2078]
[1748686513620,0.78793,2537.4,2537.1,3.2078]
[1748686513812,2.08015,2537.3,2537.2,1.13955764]
[1748686514020,1.2922,2537.3,2537.2,1.13955764]
[1748686514218,2.08015,2537.3,2537.2,1.13955764]
[1748686514617,1.2922,2537.3,2537.2,4.34735764]
[1748686514815,1.2922,2537.3,2537.2,5.13533764]
[1748686515017,2.08015,2537.3,2537.2,1.13955764]
[1748686515220,1.2922,2537.3,2537.2,0.78798]
[1748686515412,0.0059209,2537.5,2537.4,0.78792]
[1748686516317,0.0059209,2537.5,2537.4,3.99572]
[1748686518221,0.0059209,2537.5,2537.4,0.78792]
[1748686519522,0.07747429,2537.5,2537.4,0.78792]
[1748686519824,0.07747429,2537.5,2537.4,7.07172]
[1748686520327,0.07747429,2537.5,2537.4,0.78792]
[1748686521126,4.29e-06,2537.5,2537.4,7.07172]
[1748686521328,4.29e-06,2537.7,2537.6,0.78785]
[1748686521624,4.29e-06,2537.7,2537.6,3.99565]
[1748686521825,4.29e-06,2537.7,2537.6,8.99565]
[1748686522121,4.29e-06,2537.7,2537.6,6.30509538]
[1748686522525,4.29e-06,2537.7,2537.6,3.09729538]
[1748686522728,4.29e-06,2537.7,2537.6,2.30944538]
[1748686522929,4.29e-06,2537.7,2537.6,3.09729538]
[1748686523132,2.02732429,2537.7,2537.6,2.30944538]
[1748686523330,2.02732429,2537.7,2537.6,3.09729538]
[1748686523331,1.23950429,2537.7,2537.6,3.09729538]
[1748686523523,1.23950429,2537.7,2537.5,0.78787]
[1748686523729,1.23950429,2537.7,2537.6,0.78785]
[1748686523925,2.02733429,2537.7,2537.6,0.78785]
[1748686524134,2.02734429,2537.7,2537.6,0.78785]
[1748686524436,1.23950429,2537.7,2537.6,0.78785]
[1748686524734,4.29e-06,2537.7,2537.6,0.78785]
[1748686524933,4.29e-06,2537.7,2537.6,8.99565]
[1748686526630,3.2078,2538.4,2537.9,1.96941]
[1748686526835,3.2078,2538.4,2538.3,0.78764]
[1748686527230,3.2078,2538.4,2537.9,3.2078]
[1748686527428,1.3065,2538.3,2537.9,1.92936484]
[1748686527732,1.3065,2538.3,2538.1,0.78769]
[1748686527926,1.3065,2538.3,2538.2,0.78767]
[1748686528129,1.3065,2538.3,2538.1,0.78767]
[1748686528332,0.78779,2537.9,2537.4,6.31917484]
[1748686528536,1.3065,2537.8,2537.7,0.78782]
[1748686528736,5.83133,2538.6,2538.1,0.78768]
[1748686528935,3.2078,2538.2,2538.0,0.78772]
[1748686529141,3.2078,2538.2,2537.7,5.17734]
[1748686529331,0.78768,2538.2,2538.1,0.7877]
[1748686529636,0.78765,2538.3,2537.8,1.96949]
[1748686529940,3.99539,2538.5,2538.4,0.78761]
[1748686530139,3.2078,2538.5,2538.4,0.78761]
[1748686530339,0.6546,2538.6,2538.5,0.78757]
[1748686530537,3.2078,2538.8,2538.3,0.00590912]
[1748686531038,3.2078,2538.8,2538.7,0.78751]
[1748686531240,3.2078,2538.8,2538.6,0.78752]
[1748686531441,0.78752,2538.7,2538.6,0.78752]
[1748686531941,0.78757,2538.6,2538.5,0.78756]
[1748686532136,3.2078,2538.8,2538.3,0.00590912]
[1748686532438,0.78764,2538.3,2538.2,1.14183902]
[1748686532738,0.78767,2538.2,2538.1,0.90980902]
[1748686532934,1.2858,2538.2,2538.1,0.90983902]
[1748686533139,2.07347,2538.2,2538.1,0.12213902]
[1748686533341,2.07347,2538.2,2538.1,0.90983902]
[1748686533641,0.78773,2538.0,2537.9,0.00590912]
[1748686533842,0.78773,2538.0,2537.9,0.79366912]
[1748686534443,0.78771,2538.1,2538.0,0.78771]
[1748686534651,0.78773,2538.0,2537.9,0.79364912]
[1748686534941,2.04093,2538.0,2537.9,0.00590912]
[1748686535341,0.78779,2537.8,2537.7,1.52216646]
[1748686535537,0.78785,2537.6,2537.5,2.30944538]
[1748686535743,1.96964,2537.6,2536.6,1.97038]
[1748686535936,0.78802,2537.1,2537.0,0.78804]
[1748686536133,0.78804,2537.0,2536.9,3.92791201]
[1748686536332,0.78819,2536.6,2536.4,0.78821]
[1748686536536,0.78826,2536.3,2536.2,3.85498476]
[1748686536733,3.2078,2536.7,2536.2,3.85498476]
[1748686536944,0.78824,2536.4,2536.2,0.79417912]
[1748686537438,3.2078,2536.7,2536.2,0.00590912]
[1748686537835,3.99606,2536.3,2536.2,0.00590912]
[1748686538035,3.2078,2536.3,2536.2,0.00590912]
[1748686538241,3.99606,2536.3,2536.2,0.00590912]
[1748686539838,3.2078,2536.3,2536.2,0.79419912]
[1748686540244,3.99606,2536.3,2536.2,0.00590912]
[1748686540951,8.99606,2536.3,2536.2,0.00590912]
[1748686541246,1.97073,2536.2,2535.6,3.2078]
[1748686541440,0.78846,2535.7,2535.6,0.78848]
[1748686541646,1.97081,2536.1,2535.2,1.3391]
[1748686541647,3.2078,2536.1,2535.9,0.78838]
[1748686541842,2.12825,2536.0,2535.9,0.78838]
[1748686542143,1.3399,2536.0,2535.9,0.78838]
[1748686542336,1.3399,2536.0,2535.7,0.00590912]
[1748686542337,3.2078,2536.1,2536.0,0.78835]
[1748686542536,1.3399,2536.5,2536.4,0.78823]
[1748686542745,0.00590912,2536.8,2536.7,0.78813]
[1748686542949,0.00590912,2536.8,2536.7,0.76909088]
[1748686543448,0.00590912,2536.8,2536.4,1.3391]
[1748686543648,0.78815,2536.7,2536.2,1.97073]
[1748686543843,3.2078,2536.3,2535.2,7.05687564]
[1748686544043,0.78836,2536.0,2535.8,0.78841]
[1748686544248,0.78841,2535.8,2535.6,0.78846]
[1748686544445,1.3232,2535.9,2535.8,0.78841]
[1748686544747,3.2078,2536.4,2535.5,1.97125]
[1748686544945,3.2078,2536.1,2535.6,1.2427]
[1748686545250,3.2078,2536.1,2535.2,3.84907564]
[1748686545251,3.99621,2535.8,2535.2,5.82054564]
[1748686545548,0.78841,2535.8,2535.2,3.84907564]
[1748686545737,0.78841,2535.8,2535.6,0.78846]
[1748686545941,0.78841,2535.8,2535.2,3.84907564]
[1748686546148,1.3232,2536.0,2535.9,0.78838]
[1748686546542,0.78839,2535.9,2535.8,0.7884]
[1748686546840,1.3232,2536.0,2535.9,0.78838]
[1748686547046,0.78841,2535.9,2535.4,5.17913]
[1748686547247,1.3582,2535.8,2535.7,0.79434912]
[1748686547448,1.3582,2535.8,2535.7,0.00590912]
[1748686547643,5.35441,2535.8,2535.7,0.00590912]
[1748686548551,9.566,2535.8,2535.5,0.78849]
[1748686548753,0.78847,2535.7,2535.6,0.78847]
[1748686548952,2.14667,2535.7,2535.6,0.78847]
[1748686549455,1.3582,2535.7,2535.6,0.78847]
[1748686549652,0.78837,2536.0,2535.9,0.78836]
[1748686549852,1.3582,2536.0,2535.4,1.32330912]
[1748686550053,0.7885,2535.6,2535.5,0.78849]
[1748686550354,0.78846,2535.7,2535.6,0.78846]
[1748686550742,3.2078,2535.8,2535.6,0.78846]
[1748686550947,3.8411,2536.5,2536.4,0.78823]
[1748686551153,0.78825,2536.4,2536.3,0.78825]
[1748686551557,0.78831,2536.2,2536.1,0.78828]
[1748686551856,5.17858,2536.2,2535.4,0.00590912]
[1748686552057,0.07155339,2535.8,2535.4,0.00590912]
[1748686552453,0.85999339,2535.8,2535.7,0.78844]
[1748686553357,0.07155339,2535.8,2535.7,0.78844]
[1748686553556,0.85996339,2535.8,2535.7,0.78844]
[1748686554052,0.07155339,2535.8,2535.7,0.78844]
[1748686554251,0.78846,2535.7,2535.6,0.78845]
[1748686554452,0.85998339,2535.8,2535.7,0.78844]
[1748686554957,0.07155339,2535.8,2535.7,0.78844]
[1748686555551,0.78848,2535.7,2535.6,0.78846]
[1748686555856,0.78846,2535.7,2535.6,0.78844]
[1748686556159,0.07155339,2535.8,2535.4,0.00590912]
[1748686556160,0.78851,2535.6,2535.5,0.78849]
[1748686556863,3.9963,2535.6,2535.4,0.00590912]
[1748686557056,3.9963,2535.6,2535.5,0.78851]
[1748686557256,0.07155339,2535.8,2535.7,0.78844]
[1748686558060,0.85997339,2535.8,2535.7,0.78844]
[1748686558359,0.85997339,2535.8,2535.4,1.32810912]
[1748686558360,0.07155339,2535.8,2535.4,1.32810912]
[1748686558560,0.07155339,2535.8,2535.5,0.78848]
[1748686558561,0.78851,2535.6,2535.5,0.78848]
[1748686558958,0.78851,2535.5,2535.4,0.79442912]
[1748686559163,3.99629,2535.6,2535.5,0.78851]
[1748686559361,0.78851,2535.5,2535.4,0.79442912]
[1748686559666,0.78851,2535.5,2535.4,9.12e-06]
[1748686559861,5.78851,2535.5,2535.4,9.12e-06]
[1748686562653,0.78888,2534.3,2534.2,2.30470486]
[1748686562950,4.19388,2534.3,2534.2,2.30470486]
[1748686563356,3.405,2534.3,2534.2,3.09361486]
[1748686563556,0.1972,2534.3,2534.2,0.78891]
[1748686563754,0.00590912,2534.5,2534.4,0.78885]
[1748686563957,3.27935339,2535.8,2535.7,0.78844]
[1748686564165,0.78849,2535.6,2535.5,0.78848]
[1748686564458,3.2078,2535.8,2535.2,1.249]
[1748686564850,4.00213912,2535.8,2535.7,0.78844]
[1748686566067,0.00590912,2535.8,2535.7,0.78844]
[1748686567364,0.00590912,2535.8,2535.7,3.09314486]
[1748686568560,0.00590912,2535.8,2535.7,3.86885114]
[1748686569064,0.00590912,2535.8,2535.7,8.86885114]
[1748686569270,0.00590912,2535.8,2535.7,3.86885114]
[1748686569459,0.78846,2535.7,2535.5,1.3449]
[1748686569762,0.00590912,2535.8,2535.7,0.78844]
[1748686570866,0.00590912,2535.8,2535.7,3.88430042]
[1748686571267,0.00590912,2535.8,2535.7,8.88430042]
[1748686571558,1.3414,2536.5,2535.7,8.88430042]
[1748686571559,3.8825,2536.5,2536.4,0.78823]
[1748686571766,3.2078,2536.9,2536.2,1.97069]
[1748686571957,1.245,2536.8,2536.3,1.97065]
[1748686572160,0.78814,2536.7,2536.6,0.78815]
[1748686572668,0.00590912,2536.9,2536.8,0.7881]
[1748686572868,0.78812,2536.8,2536.6,0.00590912]
[1748686573067,2.03312,2536.8,2536.7,0.78812]
[1748686573257,1.245,2536.8,2536.6,0.00590912]
[1748686573461,1.245,2536.8,2536.7,2.33592675]
[1748686573661,0.00590912,2536.9,2536.8,0.7881]
[1748686574170,1.96992,2537.3,2536.8,0.7881]
[1748686574171,3.2078,2537.8,2537.2,1.96994]
[1748686574363,3.2078,2537.8,2537.5,0.78787]
[1748686574557,1.2826,2537.7,2537.4,0.78789]
[1748686574774,0.78792,2537.4,2537.3,1.54779675]
[1748686575263,0.78801,2537.1,2537.0,3.8836235]
[1748686575569,3.2078,2537.3,2537.0,3.0955935]
[1748686575770,0.788,2537.2,2537.1,2.0198]
[1748686575957,0.788,2537.2,2537.1,1.2318]
[1748686576364,0.78801,2537.1,2537.0,2.31642707]
[1748686576564,2.07061,2537.1,2537.0,2.31642707]
[1748686576964,2.07061,2537.1,2537.0,2.33162852]
[1748686577167,0.00590912,2537.6,2537.0,1.54358852]
[1748686577372,5.17763,2537.4,2537.0,2.77538852]
[1748686577565,3.99581,2537.1,2537.0,3.56342852]
[1748686577872,3.99581,2537.1,2537.0,2.31642707]
[1748686578869,1.97011,2537.0,2536.6,0.00590912]
[1748686579071,0.78807,2536.9,2536.8,1.54266099]
[1748686579369,5.22957,2536.9,2536.8,1.54266099]
[1748686579676,10.22957,2536.9,2536.8,1.54266099]
[1748686580466,0.78813,2536.7,2536.6,0.00590912]
[1748686580766,1.97035,2536.7,2535.8,2.01689]
[1748686580965,0.78844,2535.7,2535.6,0.6594]
[1748686581168,0.78844,2535.7,2535.5,1.2285]
[1748686581169,0.78847,2535.6,2535.5,1.2285]
[1748686581362,0.78851,2535.5,2535.4,5.50920662]
[1748686581564,1.3149,2535.6,2535.4,5.50920662]
[1748686581768,0.78848,2535.6,2535.5,0.78851]
[1748686582067,0.78851,2535.5,2535.4,1.2285]
[1748686582268,0.78857,2535.3,2535.2,0.00590912]
[1748686583070,2.10347,2535.3,2535.2,0.00590912]
[1748686583268,2.62199,2535.6,2535.2,0.00590912]
[1748686583269,0.6508,2535.6,2535.2,0.00590912]
[1748686583566,0.78857,2535.3,2535.2,0.00590912]
[1748686584174,2.08677,2535.3,2535.2,0.00590912]
[1748686584579,8.26968,2535.3,2534.5,1.97205]
[1748686584876,5.17949,2535.0,2534.4,1.3069]
[1748686585074,5.17949,2535.0,2534.5,0.78881]
[1748686585075,0.7888,2534.6,2534.5,0.78881]
[1748686585280,3.2078,2534.7,2534.3,2.77124564]
[1748686585581,1.97247,2534.0,2532.8,3.2078]
[1748686585770,3.2078,2533.2,2532.8,3.2078]
[1748686585969,3.2078,2533.3,2532.9,1.3069]
[1748686586169,3.2078,2533.3,2533.2,0.78922]
[1748686586375,0.0059209,2533.7,2533.6,0.7891]
[1748686587383,0.0059209,2533.7,2533.6,5.7891]
[1748686587880,3.2078,2534.8,2534.2,0.78889]
[1748686588072,0.78884,2534.5,2534.3,2.12246]
[1748686588272,3.99664,2534.5,2534.3,2.12246]
[1748686588674,3.2078,2534.5,2534.3,1.3336]
[1748686588878,0.78885,2534.4,2534.2,0.78888]
[1748686589079,0.78885,2534.4,2534.2,0.78891]
[1748686589273,0.78885,2534.4,2534.1,0.0059209]
[1748686589573,0.78882,2534.5,2534.1,0.0059209]
[1748686589773,0.0059209,2534.7,2534.6,0.78879]
[1748686590179,0.0059209,2534.7,2534.3,1.3354]
[1748686590475,3.2078,2534.5,2534.4,0.78885]
[1748686590879,3.99662,2534.5,2534.4,0.78885]
[1748686591077,3.2078,2534.5,2534.1,0.0059209]
[1748686591382,3.2078,2534.5,2534.4,0.78885]
[1748686591772,3.2078,2534.5,2534.1,0.0059209]
[1748686591976,1.2474,2534.4,2534.1,0.0059209]
[1748686592482,3.99671,2534.2,2534.1,0.7948609]
[1748686592678,3.99671,2534.2,2534.1,0.0059209]
[1748686593279,5.31151,2534.2,2534.1,0.0059209]
[1748686595581,6.4949,2534.2,2533.3,5.18077]
[1748686595787,0.78908,2533.7,2533.6,0.78907]
[1748686596484,0.78908,2533.7,2532.9,3.2078]
[1748686596485,5.18051,2533.7,2532.9,3.2078]
[1748686596686,0.78925,2533.1,2533.0,0.0059209]
[1748686597080,0.78938,2532.7,2532.6,3.08212076]
[1748686597289,0.78938,2532.7,2532.5,0.78943]
[1748686597290,0.78941,2532.6,2532.5,0.78943]
[1748686597489,2.07791,2532.6,2532.5,0.78943]
[1748686597690,3.2078,2533.0,2532.1,1.3027]
[1748686597986,3.2078,2533.0,2532.9,0.78931]
[1748686598192,0.0059209,2533.3,2532.6,5.18125]
[1748686598389,0.78922,2533.2,2533.1,0.78923]
[1748686599090,0.0059209,2533.3,2533.2,0.78922]
[1748686599986,0.0059209,2533.3,2532.9,1.2973]
[1748686600186,0.78924,2533.2,2533.1,0.78924]
[1748686600393,0.7951309,2533.3,2533.2,0.78922]
[1748686600593,0.0059209,2533.3,2533.2,0.78922]
[1748686600991,0.7951209,2533.3,2533.2,0.78922]
[1748686601292,0.0059209,2533.3,2532.9,1.2973]
[1748686601589,0.78928,2533.0,2532.9,2.08661]
[1748686601791,0.78928,2533.0,2532.9,0.78931]
[1748686602687,5.0,2533.0,2532.6,3.2078]
[1748686602885,3.2078,2533.2,2532.1,1.97388]
[1748686602886,0.78938,2532.8,2532.7,0.78937]
[1748686603390,2.03778,2532.8,2532.7,0.78937]
[1748686603592,1.2484,2532.8,2532.7,0.78937]
[1748686604185,0.78943,2532.6,2532.5,0.78944]
[1748686604392,3.2078,2532.6,2532.5,0.78944]
[1748686604687,3.99721,2532.6,2532.5,0.78944]
[1748686605191,3.2078,2532.6,2532.4,1.2484]
[1748686605387,3.2078,2532.6,2532.5,0.78944]
[1748686605587,0.78944,2532.5,2532.4,2.03785]
[1748686605786,0.78947,2532.4,2532.3,0.0059209]
[1748686605984,3.2078,2532.6,2532.3,0.0059209]
[1748686606494,3.2078,2532.6,2532.5,0.78944]
[1748686606793,3.99721,2532.6,2532.5,0.78944]
[1748686607095,0.78944,2532.5,2532.4,1.256]
[1748686607390,0.78947,2532.4,2532.3,0.7954009]
[1748686607994,0.78947,2532.4,2532.3,0.0059209]
[1748686608190,3.2078,2532.6,2532.5,0.78944]
[1748686608694,0.78947,2532.5,2532.4,0.78945]
[1748686608894,0.78947,2532.4,2532.3,0.7954109]
[1748686609588,3.2078,2532.6,2532.3,1.9796709]
[1748686609792,3.2078,2532.6,2532.5,0.78944]
[1748686610892,3.27935339,2532.6,2532.5,0.78944]
[1748686611193,4.06876339,2532.6,2532.5,0.78944]
[1748686611395,3.27935339,2532.6,2532.3,1.9796509]
[1748686611693,0.07155339,2532.6,2532.5,0.78944]
[1748686613892,3.99704,2533.2,2533.1,0.78925]
[1748686614194,3.99704,2533.2,2532.9,1.97327]
[1748686614195,0.0059209,2533.3,2533.2,0.59192]
[1748686616392,0.78928,2533.0,2532.9,2.30565406]
[1748686616591,3.99708,2533.0,2532.9,2.30565406]
[1748686616787,0.78945,2532.5,2532.3,0.7954209]
[1748686616990,3.2078,2532.5,2532.3,0.7954209]
[1748686617198,0.78947,2532.4,2532.3,0.0059209]
[1748686617793,4.4709,2532.5,2532.3,0.0059209]
[1748686618196,0.78947,2532.4,2532.3,0.0059209]
[1748686618496,1.2631,2532.5,2532.3,0.7954109]
[1748686618695,0.78947,2532.4,2532.3,0.0059209]
[1748686620199,0.78947,2532.4,2532.3,0.7954209]
[1748686620491,3.99726,2532.5,2532.4,0.78947]
[1748686620686,3.2078,2532.5,2532.3,0.0059209]
[1748686620895,2.03557,2532.4,2532.3,0.0059209]
[1748686622297,0.78947,2532.4,2532.3,0.0059209]
[1748686623294,0.78947,2532.4,2532.3,0.7954209]
[1748686623500,3.99726,2532.5,2532.4,0.78947]
[1748686623694,3.99726,2532.5,2532.4,2.05737]
[1748686623894,3.2078,2532.5,2532.4,2.05737]
[1748686624099,3.99724,2532.5,2532.4,2.05737]
[1748686624296,0.07155339,2532.6,2532.5,0.78944]
[1748686624496,0.07155339,2532.6,2532.5,2.05734]
[1748686624899,0.07155339,2532.6,2532.5,7.05734]
[1748686625205,0.7893,2533.0,2532.9,0.78931]
[1748686625396,4.19437,2533.1,2533.0,0.78928]
[1748686625598,4.19435,2533.1,2533.0,0.78928]
[1748686626101,4.19435,2533.1,2532.6,2.31402476]
[1748686626102,0.78938,2532.7,2532.6,2.31402476]
[1748686626999,0.78938,2532.7,2532.6,0.0083707]
[1748686627203,7.06938,2532.7,2532.6,0.0083707]
[1748686627405,8.38538,2532.7,2532.6,0.0083707]
[1748686628507,3.38538,2532.7,2532.6,0.0083707]
[1748686628707,3.2078,2532.8,2532.7,0.78938]
[1748686628907,3.99715,2532.8,2532.7,0.78938]
[1748686629111,3.2078,2532.8,2532.7,2.07218]
[1748686629310,3.99715,2532.8,2532.7,2.07218]
[1748686630003,3.2078,2532.8,2532.7,2.07218]
[1748686630208,0.78932,2532.9,2532.8,0.78935]
[1748686630405,0.78932,2532.9,2532.8,2.11615]